fUSD/lending_fUSD_20260412
["ID","MTS","AMOUNT","RATE_DAILY","PERIOD"]
[420301391,1775940633238,-150.0,0.00015229,2]
[420301392,1775940633252,-6024.0,0.00015229,2]
[420301393,1775940633263,-3774.0,0.00015229,2]
[420301394,1775940633277,-197.0,0.00015257,2]
[420301395,1775940633290,-2500.0,0.0001527,2]
[420301396,1775940633311,-5682.9668855,0.00015273,2]
[420301397,1775940633321,-197.0,0.00015284,2]
[420301399,1775940633343,-197.0,0.00015296,2]
[420301401,1775940633353,-500.0,0.00015369,2]
[420301403,1775940633371,-500.0,0.00015369,2]
[420301404,1775940633381,-300.86613662,0.00015369,2]
[420301406,1775940633390,-500.0,0.00015369,2]
[420301408,1775940633398,-326.85261539,0.00015369,2]
[420301410,1775940633407,-500.0,0.00015369,2]
[420301412,1775940633427,-500.0,0.00015369,2]
[420301414,1775940633437,-500.0,0.00015369,2]
[420301416,1775940633446,-500.0,0.00015369,2]
[420301418,1775940633465,-500.0,0.00015369,2]
[420301420,1775940633474,-500.0,0.00015369,2]
[420301421,1775940633483,-500.0,0.00015369,2]
[420301423,1775940633495,-55975.36366929,0.0001537,2]
[420301449,1775940634914,-20189.12228989,0.0001537,2]
[420301450,1775940634975,-308.29206342,0.0001537,2]
[420301451,1775940635003,-4593.48454818,0.0001537,2]
[420301452,1775940635019,-1668.0,0.0001537,2]
[420301456,1775940637643,-534.0,0.0001537,2]
[420301457,1775940637654,-3566.23079012,0.0001537,2]
[420301458,1775940637674,-791.10122,0.0001537,2]
[420301599,1775940640094,-50994.47221918,0.0001537,2]
[420301691,1775940641654,-596.298,0.00015229,2]
[420301769,1775940642942,-1875.702,0.00015229,2]
[420301770,1775940642973,-152.0,0.00015351,7]
[420301771,1775940642995,-7252.06083174,0.0001537,2]
[420301772,1775940643023,-91698.15626818,0.0001537,2]
[420301773,1775940643052,-888.88889,0.0001544,2]
[420301774,1775940643061,-888.88889,0.0001544,2]
[420301775,1775940643097,-197.0,0.00015445,2]
[420301776,1775940643107,-888.88889,0.0001545,2]
[420301777,1775940643116,-155.0614,0.0001547,2]
[420301778,1775940643130,-200.0,0.00015475,2]
[420301779,1775940643173,-9451.00472762,0.00015491,2]
[420301780,1775940643190,-1346.7613,0.000155,2]
[420301781,1775940643201,-379.40137078,0.000155,2]
[420301782,1775940643211,-1000.0,0.000155,2]
[420301783,1775940643230,-5000.0,0.000155,2]
[420301784,1775940643240,-6715.03138555,0.000155,2]
[420301785,1775940643250,-321.02420554,0.000155,2]
[420301786,1775940643264,-2816.0,0.00015507,2]
[420301787,1775940643290,-250.0,0.00015518,2]
[420301788,1775940643299,-250.0,0.00015518,2]
[420301789,1775940643310,-250.0,0.00015518,2]
[420301790,1775940643340,-2316.0,0.00015525,2]
[420301791,1775940643350,-445.0,0.00015525,2]
[420301793,1775940643360,-197.0,0.00015541,2]
[420301794,1775940643371,-500.0,0.00015573,2]
[420301795,1775940643385,-500.0,0.00015573,2]
[420301796,1775940643403,-500.0,0.00015573,2]
[420301797,1775940643415,-206.0192335,0.0001559,2]
[420301798,1775940643425,-15758.439683,0.00015591,2]
[420301799,1775940643436,-1279.4171945,0.00015591,2]
[420301800,1775940643459,-197.0,0.00015597,2]
[420301801,1775940643469,-500.0,0.00015598,2]
[420301802,1775940643486,-500.0,0.00015598,2]
[420301803,1775940643506,-187.04611538,0.00015598,2]
[420301804,1775940643516,-196.98742486,0.00015598,2]
[420301805,1775940643551,-224.22832424,0.00015598,2]
[420301806,1775940643586,-500.0,0.00015598,2]
[420301807,1775940643620,-547.20044291,0.00015598,2]
[420301808,1775940643631,-364.03693727,0.00015598,2]
[420301809,1775940643644,-228.09,0.00015599,2]
[420301810,1775940643654,-500.0,0.00015599,2]
[420301811,1775940643665,-500.0,0.00015599,2]
[420301812,1775940643675,-500.0,0.00015599,2]
[420301813,1775940643684,-500.0,0.00015599,2]
[420301814,1775940643694,-500.0,0.00015599,2]
[420301815,1775940643704,-500.0,0.00015599,2]
[420301816,1775940643713,-500.0,0.00015599,2]
[420301817,1775940643722,-500.0,0.00015599,2]
[420301818,1775940643734,-567.82,0.00015599,2]
[420301819,1775940643744,-500.0,0.00015599,2]
[420301820,1775940643754,-500.0,0.00015599,2]
[420301821,1775940643763,-500.0,0.00015599,2]
[420301822,1775940643776,-500.0,0.00015599,2]
[420301823,1775940643786,-500.0,0.00015599,2]
[420301824,1775940643797,-500.0,0.00015599,2]
[420301825,1775940643807,-500.0,0.00015599,2]
[420301826,1775940643823,-500.0,0.00015599,2]
[420301827,1775940643833,-500.0,0.00015599,2]
[420301828,1775940643842,-500.0,0.00015599,2]
[420301829,1775940643857,-500.0,0.00015599,2]
[420301830,1775940643868,-500.0,0.00015599,2]
[420301831,1775940643878,-500.0,0.00015599,2]
[420301832,1775940643891,-500.0,0.00015599,2]
[420301833,1775940643901,-500.0,0.00015599,2]
[420301834,1775940643913,-500.0,0.00015599,2]
[420301835,1775940643923,-500.0,0.00015599,2]
[420301836,1775940643936,-500.0,0.00015599,2]
[420301837,1775940643946,-500.0,0.00015599,2]
[420301838,1775940643958,-500.0,0.00015599,2]
[420301839,1775940643969,-500.0,0.00015599,2]
[420301840,1775940643989,-500.0,0.00015599,2]
[420301841,1775940644005,-500.0,0.00015599,2]
[420301842,1775940644030,-155.0,0.000156,5]
[420301843,1775940644039,-156.0,0.000156,5]
[420301844,1775940644059,-113110.71213355,0.000156,2]
[420301845,1775940644074,-143164.80278394,0.000156,2]
[420301854,1775940646534,-1000.0,0.000151,2]
[420301855,1775940646551,-599.53107135,0.0001527,2]
[420301856,1775940646590,-400.46892865,0.0001527,2]
[420301857,1775940646611,-2123.0,0.00015591,2]
[420301858,1775940646620,-8470.18107135,0.000156,2]
[420301859,1775940646634,-224282.65600641,0.000156,2]
[420301860,1775940646665,-429.95275171,0.000156,2]
[420301861,1775940680813,319.33726292,0.00030062,120]
[420301862,1775940707702,983.0,0.0003013,120]
[420301863,1775940708518,621.0,0.0003013,120]
[420301864,1775940709299,970.0,0.0003013,120]
[420301865,1775940763288,1843.0,0.0003013,120]
[420301866,1775940764376,582.61398318,0.0003013,120]
[420301867,1775940773531,500.0,0.0003013,120]
[420301868,1775940979663,191.60235775,0.00030083,120]
[420301882,1775941831569,-273.43605701,0.00010085,4]
[420301883,1775941831599,-193.0,0.00010187,2]
[420301884,1775941831621,-1929.65632697,0.00010187,2]
[420301885,1775941831667,-914.31806116,0.00010187,2]
[420301886,1775941831682,-569.13169042,0.00010187,2]
[420301887,1775941831706,-928.38492508,0.00010187,2]
[420301888,1775941831866,-658.50899637,0.00010187,2]
[420301889,1775941831880,-193.0,0.00010249,2]
[420301890,1775941831902,-1426.12431089,0.00010249,2]
[420301891,1775941831978,-1167.03448732,0.00010249,2]
[420301892,1775941831989,-300.0,0.00010289,2]
[420301893,1775941832002,-250.0,0.0001029,2]
[420301895,1775941832024,-300.0,0.0001029,2]
[420301897,1775941832034,-1200.0,0.0001029,2]
[420301899,1775941832052,-337.86622799,0.0001029,2]
[420301900,1775941832069,-500.0,0.00010291,2]
[420301901,1775941832079,-311.89775663,0.00010291,2]
[420301902,1775941832112,-970.44892758,0.00010291,2]
[420301903,1775941832233,-451.2111369,0.00010291,2]
[420301904,1775941832243,-500.0,0.00010291,2]
[420301905,1775941832255,-150.0,0.00010291,2]
[420301906,1775941832268,-1733.55782111,0.00010291,2]
[420301907,1775941832282,-500.0,0.00010291,2]
[420301908,1775941832306,-500.0,0.00010291,2]
[420301909,1775941832326,-500.0,0.00010291,2]
[420301910,1775941832354,-500.0,0.00010291,2]
[420301911,1775941832369,-500.0,0.00010291,2]
[420301913,1775941832392,-500.0,0.00010291,2]
[420301915,1775941832406,-500.0,0.00010291,2]
[420301917,1775941832426,-500.0,0.00010291,2]
[420301919,1775941832444,-500.0,0.00010291,2]
[420301921,1775941832455,-500.0,0.00010291,2]
[420301924,1775941832477,-500.0,0.00010291,2]
[420301926,1775941832499,-500.0,0.00010291,2]
[420301927,1775941832512,-500.0,0.00010291,2]
[420301928,1775941832521,-500.0,0.00010291,2]
[420301929,1775941832533,-500.0,0.00010291,2]
[420301930,1775941832553,-500.0,0.00010291,2]
[420301931,1775941832563,-500.0,0.00010291,2]
[420301932,1775941832575,-500.0,0.00010291,2]
[420301933,1775941832598,-500.0,0.00010291,2]
[420301934,1775941832608,-500.0,0.00010291,2]
[420301935,1775941832620,-437.49769121,0.00010291,4]
[420301936,1775941832642,-382.81047981,0.00010291,4]
[420301937,1775941832652,-500.0,0.00010291,2]
[420301938,1775941832675,-273.43605701,0.00010291,4]
[420301939,1775941832689,-500.0,0.00010291,2]
[420301940,1775941832699,-500.0,0.00010291,2]
[420301941,1775941832714,-500.0,0.00010291,2]
[420301942,1775941832724,-500.0,0.00010291,2]
[420301943,1775941832734,-500.0,0.00010291,2]
[420301944,1775941832743,-500.0,0.00010291,2]
[420301945,1775941832762,-500.0,0.00010291,2]
[420301946,1775941832772,-500.0,0.00010291,2]
[420301947,1775941832782,-500.0,0.00010291,2]
[420301948,1775941832809,-500.0,0.00010291,2]
[420301949,1775941832820,-500.0,0.00010291,2]
[420301950,1775941832837,-500.0,0.00010291,2]
[420301951,1775941832861,-500.0,0.00010291,2]
[420301952,1775941832874,-500.0,0.00010291,2]
[420301953,1775941832899,-500.0,0.00010291,2]
[420301954,1775941832912,-500.0,0.00010291,2]
[420301955,1775941832926,-500.0,0.00010291,2]
[420301956,1775941832943,-500.0,0.00010291,2]
[420301957,1775941832968,-500.0,0.00010291,2]
[420301958,1775941832977,-500.0,0.00010291,2]
[420301959,1775941832987,-500.0,0.00010291,2]
[420301960,1775941833002,-500.0,0.00010291,2]
[420301961,1775941833015,-500.0,0.00010291,2]
[420301962,1775941833025,-218.7488456,0.00010291,4]
[420301963,1775941833044,-328.1232684,0.00010291,4]
[420301964,1775941833055,-500.0,0.00010575,2]
[420301965,1775941833064,-3383.205,0.00010602,2]
[420301966,1775941833081,-184.386,0.00010602,2]
[420301967,1775941833091,-3089.97484965,0.000107,2]
[420301976,1775941837847,-652.15582386,0.000107,2]
[420301979,1775941837861,-301.74183357,0.000107,2]
[420301982,1775941837874,-794.58580704,0.000107,2]
[420301983,1775941837889,-39336.22710627,0.000107,2]
[420301984,1775941838003,-4808.94648525,0.000107,2]
[420302011,1775941838649,-441.26728895,0.000107,2]
[420302013,1775941838661,-695.9,0.000107,2]
[420302016,1775941838675,-2200.0,0.000107,2]
[420302030,1775941840544,-877.57779725,0.000107,2]
[420302033,1775941840891,-2078.89105707,0.000107,2]
[420302053,1775941842793,-9396.74810928,0.000107,2]
[420302060,1775941846526,-2550.95452213,0.000107,2]
[420302062,1775941846556,-6552.59999987,0.000107,2]
[420302064,1775941846569,-8479.35632649,0.000107,2]
[420302066,1775941846614,-279.8930869,0.000107,2]
[420302068,1775941846623,-565.1069161,0.00011,2]
[420302072,1775941846665,-312.46999951,0.00011,2]
[420302074,1775941846675,-195.0,0.00011094,2]
[420302076,1775941846687,-193.0,0.00011094,2]
[420302077,1775941846711,-2962.03000049,0.00011094,2]
[420302079,1775941846730,-2037.96999951,0.00011094,2]
[420302081,1775941846777,-150.0,0.00011112,2]
[420302084,1775941846795,-10.08259758,0.00011123,2]
[420302088,1775941846903,-491.60694046,0.00011123,2]
[420302090,1775941846912,-150.0,0.000113,2]
[420302092,1775941846922,-420.0,0.00011315,2]
[420302094,1775941846931,-420.0,0.00011316,2]
[420302095,1775941846946,-600.0,0.00011318,2]
[420302098,1775941846955,-600.0,0.00011318,2]
[420302100,1775941846968,-600.0,0.00011318,2]
[420302102,1775941846977,-600.0,0.00011318,2]
[420302104,1775941847001,-600.0,0.00011318,2]
[420302106,1775941847013,-250.0,0.00011318,2]
[420302108,1775941847023,-195.0,0.00011318,2]
[420302110,1775941847048,-195.0,0.00011318,2]
[420302112,1775941847059,-195.0,0.00011318,2]
[420302114,1775941847073,-196.69422067,0.00011318,2]
[420302116,1775941847162,-1680.0,0.00011319,2]
[420302118,1775941847182,-653.60046623,0.0001144,2]
[420302120,1775941847210,-587.0,0.00012444,2]
[420302122,1775941847228,-1660.0,0.00012451,2]
[420302124,1775941847246,-1500.0,0.00012462,2]
[420302126,1775941847257,-1852.42,0.00012462,2]
[420302128,1775941847268,-171.3746,0.000126,2]
[420302130,1775941847290,-150.0,0.00012657,2]
[420302132,1775941847305,-728.8,0.00012709,2]
[420302134,1775941847344,-250.44,0.00012904,7]
[420302137,1775941847359,-250.0,0.00013,2]
[420302138,1775941847368,-1733.55782111,0.00013,30]
[420302141,1775941847389,-150.0,0.00013205,2]
[420302143,1775941847398,-150.0,0.00013205,2]
[420302145,1775941847415,-1733.55782111,0.00013205,30]
[420302147,1775941847432,-1600.0,0.00013497,2]
[420302149,1775941847441,-250.0,0.00013595,2]
[420302150,1775941847455,-501.0,0.00013644,2]
[420302152,1775941847475,-165.69,0.00013653,2]
[420302154,1775941847484,-458.7,0.00013699,2]
[420302156,1775941847494,-166.66,0.00013699,2]
[420302158,1775941847507,-179.35,0.00013699,2]
[420302161,1775941847518,-287.40353663,0.00013724,2]
[420302163,1775941847536,-195.7952,0.000138,2]
[420302165,1775941847548,-166.66,0.00013836,2]
[420302167,1775941847556,-3240.0,0.00013931,2]
[420302169,1775941847579,-166.66,0.00013973,2]
[420302171,1775941847589,-5698.8326731,0.00013996,2]
[420302173,1775941847603,-165.53,0.00014096,2]
[420302175,1775941847642,-166.66,0.0001411,2]
[420302177,1775941847652,-200.0,0.00014197,2]
[420302179,1775941847686,-166.66,0.00014247,2]
[420302181,1775941847701,-155.40629614,0.00014286,2]
[420302183,1775941847718,-458.7,0.00014384,2]
[420302185,1775941847729,-166.66,0.00014384,2]
[420302187,1775941847739,-874.99538241,0.0001442,4]
[420302189,1775941847783,-200.0,0.000147,2]
[420302192,1775941847795,-207.88880152,0.000147,2]
[420302194,1775941847833,-765.62095961,0.00014714,4]
[420302195,1775941847843,-546.87211401,0.00014714,4]
[420302197,1775941847866,-2500.0,0.00014732,2]
[420302199,1775941847876,-165.69,0.0001478,2]
[420302202,1775941847892,-728.8,0.00014872,2]
[420302204,1775941847902,-300.0,0.00015,2]
[420302206,1775941847912,-209.56003699,0.00015018,2]
[420302207,1775941847925,-1527.47,0.00015057,2]
[420302209,1775941847934,-458.7,0.00015068,2]
[420302211,1775941847943,-226.88,0.00015068,2]
[420302213,1775941847952,-10921.00130967,0.00015073,2]
[420302215,1775941847967,-4024.14468852,0.00015084,2]
[420302217,1775941847977,-223.6956,0.000151,2]
[420302219,1775941847986,-5698.83267305,0.0001517,2]
[420302221,1775941848000,-500.0,0.00015172,2]
[420302223,1775941848015,-500.0,0.00015172,2]
[420302225,1775941848025,-441.011384,0.00015173,2]
[420302226,1775941848034,-441.011384,0.00015173,2]
[420302227,1775941848044,-441.011384,0.00015173,2]
[420302228,1775941848060,-441.011384,0.00015173,2]
[420302229,1775941848070,-1600.0,0.00015184,2]
[420302230,1775941848089,-150.0,0.00015229,2]
[420302231,1775941848100,-150.0,0.00015229,2]
[420302232,1775941848114,-150.0,0.00015229,2]
[420302233,1775941848126,-150.0,0.00015229,2]
[420302234,1775941848136,-150.0,0.00015229,2]
[420302235,1775941848150,-1264.0,0.00015229,2]
[420302236,1775941848160,-1218.0,0.00015229,2]
[420302237,1775941848180,-926.0,0.00015229,2]
[420302238,1775941848189,-406.774,0.00015229,2]
[420302239,1775941848209,-2472.0,0.00015229,2]
[420302240,1775941848220,-6024.0,0.00015229,2]
[420302241,1775941848229,-8739.83403912,0.0001527,2]
[420302243,1775941996728,500.0,0.00030137,120]
[420302244,1775942693082,153.07,6.496e-05,2]
[420302245,1775942693204,153.07,6.838e-05,2]
[420302246,1775942693263,153.07,7.18e-05,2]
[420302247,1775942693339,153.07,7.522e-05,2]
[420302248,1775942693422,153.07,7.864e-05,2]
[420302249,1775942693570,153.07,8.206e-05,2]
[420302250,1775942693750,153.07,8.547e-05,2]
[420302266,1775943032382,-346.71156422,8.889e-05,2]
[420302267,1775943032394,-153.07,8.889e-05,2]
[420302268,1775943032408,-346.71156422,8.889e-05,2]
[420302269,1775943032420,-153.07,9.231e-05,2]
[420302270,1775943032432,-346.71156422,9.231e-05,2]
[420302271,1775943032446,-153.07,9.573e-05,2]
[420302272,1775943032459,-346.71156422,9.573e-05,2]
[420302273,1775943032471,-250.0,9.778e-05,2]
[420302274,1775943032490,-250.0,9.778e-05,2]
[420302275,1775943032501,-250.0,9.778e-05,2]
[420302276,1775943032513,-193.0,9.778e-05,2]
[420302277,1775943032525,-5000.0,9.778e-05,2]
[420302278,1775943032543,-153.07,9.915e-05,2]
[420302279,1775943032559,-303.5223806,0.0001,2]
[420302280,1775943032571,-1200.0,0.00010188,2]
[420302281,1775943032583,-500.0,0.00010189,2]
[420302282,1775943032597,-150.0,0.00010189,2]
[420302283,1775943032621,-436.9537916,0.00010189,2]
[420302284,1775943032633,-153.07,0.00010257,2]
[420302285,1775943032666,-239.25654988,0.00010382,4]
[420302286,1775943032697,-436.9537916,0.00010394,2]
[420302287,1775943032726,-94248.2357,0.000105,2]
[420302288,1775943032748,-300.0,0.00010592,2]
[420302289,1775943032760,-1200.0,0.00010593,2]
[420302290,1775943032780,-200.0,0.00010594,2]
[420302291,1775943032813,-151.0,0.00010594,2]
[420302292,1775943032828,-151.0,0.00010594,2]
[420302293,1775943032851,-151.0,0.00010594,2]
[420302294,1775943032877,-151.0,0.00010594,2]
[420302295,1775943032898,-151.0,0.00010594,2]
[420302296,1775943032911,-151.0,0.00010594,2]
[420302297,1775943032922,-151.0,0.00010594,2]
[420302298,1775943032944,-151.0,0.00010594,2]
[420302299,1775943032956,-151.0,0.00010594,2]
[420302300,1775943032977,-151.0,0.00010594,2]
[420302301,1775943033742,-151.0,0.00010594,2]
[420302302,1775943033771,-151.0,0.00010594,2]
[420302303,1775943033801,-393.98074259,0.00010598,2]
[420302304,1775943034085,-42.97304901,0.00010598,2]
[420302305,1775943034095,-153.07,0.00010599,2]
[420302306,1775943034105,-436.9537916,0.00010599,2]
[420302307,1775943034118,-150.0,0.00010599,2]
[420302308,1775943034128,-676.641,0.00010602,2]
[420302309,1775943034138,-184.386,0.00010602,2]
[420302310,1775943034154,-153.07,0.00010941,2]
[420302311,1775943034163,-478.51309976,0.00010984,4]
[420302312,1775943034176,-205.67305963,0.00011207,2]
[420302313,1775943034193,-557.92409173,0.00011207,2]
[420302314,1775943034223,-916.40284864,0.00011207,2]
[420302315,1775943034233,-153.07,0.00011283,2]
[420302316,1775943034247,-151.0,0.00011499,2]
[420302317,1775943034256,-150.0,0.000116,2]
[420302318,1775943034270,-153.07,0.00011624,2]
[420302319,1775943034279,-255.0,0.00011627,2]
[420302320,1775943034297,-19720.75,0.0001186,2]
[420302321,1775943034324,-3040.29,0.0001195,2]
[420302322,1775943034333,-500.0,0.00011966,2]
[420302323,1775943034343,-153.07,0.00011966,2]
[420302324,1775943034360,-3221.1,0.00012125,2]
[420302325,1775943034379,-153.07,0.00012308,2]
[420302326,1775943034389,-1200.0,0.00012328,2]
[420302327,1775943034399,-382.81047981,0.00012364,4]
[420302328,1775943034426,-153.07,0.0001265,2]
[420302329,1775943034441,-433.0,0.00012751,2]
[420302330,1775943034451,-171.1618,0.000128,2]
[420302331,1775943034468,-334.95916983,0.000128,4]
[420302332,1775943034487,-239.25654988,0.000128,4]
[420302333,1775943034499,-153.07,0.00012992,2]
[420302334,1775943034526,-250.0,0.00013,2]
[420302335,1775943034543,-3265.52,0.00013135,2]
[420302336,1775943034556,-1049.14,0.00013184,2]
[420302337,1775943034577,-500.0,0.00013394,3]
[420302338,1775943034589,-150.0,0.00013425,2]
[420302339,1775943034604,-3074.0,0.00013699,2]
[420302340,1775943034620,-200.0,0.00013699,2]
[420302341,1775943034632,-1252.7,0.00013886,2]
[420302342,1775943034646,-463.07,0.00013949,2]
[420302343,1775943034660,-736.0,0.00013991,2]
[420302344,1775943034683,-162.0,0.00014,2]
[420302345,1775943034696,-500.0,0.00014013,2]
[420302346,1775943034705,-195.3091,0.000141,2]
[420302347,1775943034716,-155.40629614,0.00014291,2]
[420302348,1775943034728,-37182.33,0.00014292,2]
[420302349,1775943034740,-208.71,0.00014301,2]
[420302350,1775943034749,-2000.0,0.00014415,2]
[420302351,1775943034759,-150.0,0.00014461,2]
[420302352,1775943034771,-150.0,0.00014461,2]
[420302353,1775943034784,-200.0,0.00014461,2]
[420302354,1775943034793,-5759.5717017,0.00014635,2]
[420302355,1775943034807,-578.20924308,0.00014735,2]
[420302356,1775943034818,-200.0,0.00014735,2]
[420302357,1775943034829,-670.58624095,0.00014735,2]
[420302358,1775943034841,-1328.27659266,0.00014735,2]
[420302359,1775943034854,-500.0,0.00014735,2]
[420302360,1775943034867,-194.72792766,0.00014735,2]
[420302361,1775943034877,-500.0,0.00014735,2]
[420302362,1775943034894,-174.61919141,0.00014735,2]
[420302363,1775943034921,-500.06728785,0.0001479,2]
[420302364,1775943034942,-210.67815236,0.0001482,2]
[420302365,1775943034962,-1000.0,0.000149,2]
[420302366,1775943034998,-3081.8091364,0.00014927,2]
[420302367,1775943035038,-18225.6877692,0.00014927,2]
[420302368,1775943035064,-2500.0,0.00015029,2]
[420302369,1775943035096,-422.08,0.00015057,2]
[420302370,1775943035109,-10557.13148476,0.0001509,2]
[420302371,1775943035122,-362.99135216,0.00015103,2]
[420302372,1775943035145,-2131.0,0.00015129,2]
[420302373,1775943035156,-453.0,0.00015129,2]
[420302374,1775943035172,-24308.1408,0.00015129,2]
[420302375,1775943035191,-1000.0,0.00015129,2]
[420302376,1775943035220,-500.0,0.00015172,2]
[420302377,1775943035235,-500.0,0.00015172,2]
[420302378,1775943035264,-500.0,0.00015172,2]
[420302379,1775943035277,-500.0,0.00015172,2]
[420302380,1775943035306,-500.0,0.00015173,2]
[420302381,1775943035327,-500.0,0.00015189,2]
[420302382,1775943035340,-500.0,0.00015189,2]
[420302383,1775943035355,-500.0,0.00015189,2]
[420302384,1775943035365,-158445.99212087,0.0001519,2]
[420302385,1775943036385,-11459.93214266,0.0001519,2]
[420302386,1775943036427,-11375.84573647,0.0001519,2]
[420302387,1775943036450,-151.0,0.0001519,2]
[420302388,1775943036462,-151.0,0.0001519,2]
[420302389,1775943036490,-151.0,0.0001519,2]
[420302390,1775943036501,-151.0,0.0001519,2]
[420302391,1775943036529,-151.0,0.0001519,2]
[420302392,1775943036546,-151.0,0.0001519,2]
[420302393,1775943036563,-151.0,0.0001519,2]
[420302394,1775943036584,-151.0,0.0001519,2]
[420302395,1775943036593,-151.0,0.0001519,2]
[420302396,1775943036610,-151.0,0.0001519,2]
[420302397,1775943036640,-352.809107,0.0001519,2]
[420302398,1775943036655,-352.809107,0.0001519,2]
[420302399,1775943036675,-352.809107,0.0001519,2]
[420302400,1775943036686,-175.241912,0.0001519,2]
[420302401,1775943036710,-352.809107,0.0001519,2]
[420302402,1775943036722,-1218.0,0.00015196,2]
[420302403,1775943036740,-926.0,0.00015196,2]
[420302404,1775943037103,-2472.0,0.00015196,2]
[420302405,1775943037124,-125.14803358,0.00015196,2]
[420302406,1775943037269,-2769.66149264,0.00015196,2]
[420302407,1775943037492,-630.19047378,0.00015196,2]
[420302408,1775943037521,-2706.564,0.0001527,2]
[420302409,1775943037536,-184.386,0.0001527,2]
[420302410,1775943037559,-200.0,0.00015283,2]
[420302411,1775943037574,-1098.01659734,0.00015283,2]
[420302412,1775943037585,-160.97136523,0.00015283,2]
[420302413,1775943037597,-181.08010149,0.00015283,2]
[420302414,1775943037607,-276.80962295,0.00015288,2]
[420302415,1775943037659,-760.42631145,0.00015288,2]
[420302416,1775943037738,-1078.27943629,0.00015288,2]
[420302418,1775943037828,-1060.754644,0.00015288,2]
[420302420,1775943037870,-1002.01217472,0.00015288,2]
[420302422,1775943037945,-1069.00267256,0.00015288,2]
[420302424,1775943037972,-373.54664586,0.00015288,2]
[420302509,1775943040287,-929.92186601,0.00014929,2]
[420302510,1775943040307,-70.07813399,0.00014929,2]
[420302511,1775943040320,-500.0,0.00015128,2]
[420302512,1775943040333,-91.7692525,0.00015128,2]
[420302513,1775943040365,-408.2307475,0.00015128,2]
[420302514,1775943040376,-500.0,0.00015128,2]
[420302515,1775943040401,-555.37918561,0.00015128,2]
[420302516,1775943040411,-500.0,0.00015128,2]
[420302517,1775943040435,-500.0,0.00015128,2]
[420302518,1775943040444,-500.0,0.00015128,2]
[420302519,1775943040454,-500.0,0.00015128,2]
[420302520,1775943040466,-500.0,0.00015128,2]
[420302521,1775943040489,-500.0,0.00015128,2]
[420302522,1775943040499,-753.22694437,0.00015288,2]
[420302523,1775943040520,-1064.20811567,0.00015288,2]
[420302524,1775943040530,-1122.97170197,0.00015288,2]
[420302525,1775943040543,-246.664452,0.00015288,7]
[420302526,1775943040555,-191.351819,0.00015288,7]
[420302527,1775943040565,-160.0,0.00015288,7]
[420302528,1775943040576,-266.267776,0.00015288,7]
[420302529,1775943040591,-372.535552,0.00015288,7]
[420302530,1775943040603,-232.10778,0.00015288,7]
[420302531,1775943040613,-244.211799,0.00015288,7]
[420302532,1775943040635,-180.059369,0.00015288,7]
[420302533,1775943040644,-427.772506,0.00015288,2]
[420302534,1775943040653,-222.8632,0.000153,2]
[420302535,1775943040669,-261.59650031,0.00015335,2]
[420302536,1775943040679,-382.0,0.0001539,2]
[420302537,1775943040688,-919.44394559,0.000154,2]
[420302538,1775943040715,-80.55605441,0.000154,2]
[420302539,1775943040725,-313.0,0.000154,2]
[420302540,1775943040734,-134.82810604,0.000154,2]
[420302553,1775943043501,-993.80145634,0.00015165,2]